[Event "31st Kavala Open-A 2022"]
[Site "Kavala"]
[Date "2022.07.27"]
[Round "2.1"]
[White "Priyanka Nutakki"]
[Black "Gopal G.N."]
[Result "0-1"]
[ECO "B51"]
[WhiteElo "2308"]
[BlackElo "2593"]
[Annotator "TA"]
[PlyCount "102"]
[EventDate "2022.07.27"]
[EventType "swiss"]
[EventCountry "GRE"]
[SourceTitle "playchess.com"]
[Source "ChessBase"]
[SourceQuality "1"]
[TimeControl "40/5400+30:1800+30"]

{[%evp 9,102,18,20,8,22,20,10,26,45,12,39,37,34,35,54,0,37,0,3,0,0,-14,0,0,0,0,0,-43,-36,-24,-17,-67,-43,-56,-43,-58,-43,-43,-22,-145,-147,-138,-147,-175,-102,-97,-110,-141,-141,-173,-135,-122,-129,-160,-174,-150,-153,-252,-234,-270,-228,-227,-10,-220,-210,-214,-218,-339,-322,-604,-600,-660,-665,-665,-658,-670,-631,-726,-743,-979,-927,-943,-714,-2989,-2652,-1873,-1338,-1323,-1256,-4941,-4941,-4909,-1637,-826,-732]} 1. e4 {[%emt 0:01:44]} c5 {[%emt 0:00:06]} 2. Nf3 {[%emt 0:00:05]} d6 {[%emt 0:00:07]} 3. Bb5+ {[%emt 0:00:15]} Nd7 {[%emt 0:00:08]} 4. a4 {[%emt 0:00:15]} Ngf6 {[%emt 0:01:20]} 5. Nc3 {[%emt 0:00:10]} g6 {[%emt 0:05:57]} 6. a5 {[%emt 0:00:08] B51: Sicilian: Moscow Variation (3 Bb5+) without 3...Bd7.} Bg7 {[%emt 0:00:22]} 7. O-O {[%emt 0:00:12]} O-O {[%emt 0:02:39]} 8. Re1 {[%emt 0:00:05] The position is equal.} a6 {[%emt 0:01:06]} 9. Bf1 {[%emt 0:00:06]} b5 {[%emt 0:00:58]} 10. axb6 $1 {[%emt 0:02:55]} Bb7 {[%emt 0:08:53]} 11. d3 {[%emt 0:00:19]} Qxb6 {[%emt 0:00:53] [#]} 12. Qd2 $146 {[%emt 0:03:02]} (12. Nd2 $14) ({Predecessor:} 12. h3 a5 13. Nd2 Bc6 14. Nc4 Qc7 15. Bf4 a4 16. Ra2 Nh5 17. Bh2 Nb6 18. Na3 {0-1 (113) So,W (2778)-Martinez Alcantara,J (2598) Chess.com INT 2022}) 12... a5 {[%emt 0:09:32]} 13. Qg5 {[%emt 0:10:06]} Bc6 {[%emt 0:01:29]} 14. Qh4 {[%emt 0:01:57]} a4 {[%emt 0:00:45]} 15. Nd2 {[%emt 0:01:10]} Rfb8 {[%emt 0:06:28][%cal Bf8b8,Bb8b6,Bb6b4,Bb4b7][%mdl 32]} 16. Nc4 {[%emt 0:03:04]} Qd8 {[%emt 0:00:14]} 17. g3 {[%emt 0:02:55]} Nb6 {[%emt 0:08:23]} 18. Nxb6 {[%emt 0:06:17]} Rxb6 {[%emt 0:01:27]} 19. Bg2 {[%emt 0:02:07]} Rb4 {[%emt 0:07:34]} 20. Na2 {[%emt 0:06:56]} (20. Nd1 $11) 20... Rb7 $15 {[%emt 0:03:09]} 21. Nc3 {[%emt 0:00:06]} Nd7 {[%emt 0:00:56][%cal Oa4a3] aiming for ...a3!} 22. Ra3 {[%emt 0:00:25]} Rb4 {[%emt 0:05:17]} 23. Nd1 {[%emt 0:10:42]} Rab8 {[%emt 0:01:49]} 24. c3 {[%emt 0:08:23]} (24. Qg4 $11) 24... Rb3 $17 {[%emt 0:03:11]} 25. Rxb3 {[%emt 0:00:06]} Rxb3 {[%emt 0:00:05]} (25... axb3 26. f4 $15) 26. Bg5 {[%emt 0:19:43]} Bf6 {[%emt 0:02:10]} ({Black should try} 26... Ne5 $1 $19 27. Bxe7 Qb8) 27. Bxf6 {[%emt 0:01:02]} exf6 {[%emt 0:00:44]} 28. Qf4 {[%emt 0:02:41]} Ne5 {[%emt 0:04:46][%cal Bd7e5,Be5c4,Bc4b2][%mdl 32]} 29. Qe3 {[%emt 0:01:19]} c4 {[%emt 0:05:30]} 30. dxc4 {[%emt 0:01:30]} Nxc4 {[%emt 0:00:05]} 31. Qd4 {[%emt 0:04:36]} Nxb2 {[%emt 0:03:47]} 32. Ne3 {[%emt 0:00:01]} Kg7 {[%emt 0:02:36]} 33. Nc2 {[%emt 0:02:15]} (33. h4 $17) 33... Qc7 $19 {[%emt 0:06:13]} 34. g4 {[%emt 0:02:08]} h6 {[%emt 0:03:04]} 35. h4 {[%emt 0:00:15]} Qb6 $2 {[%emt 0:03:43]} ({Black should play} 35... Qa5 $19 36. Nb4 Bb7 37. Qxd6 Qe5 38. Qxe5 fxe5) 36. Qxd6 $2 {[%emt 0:00:37] White does not recover from this.} (36. g5 $1 $11 {and White is okay.} hxg5 37. hxg5 Qxd4 38. Nxd4 Rxc3 39. Nxc6) 36... Nc4 $1 {[%emt 0:00:33]} ({And not} 36... Rxc3 37. e5 Rxc2 38. Qxf6+ Kg8 39. e6 Qxf2+ 40. Qxf2 Rxf2 41. Bxc6 fxe6 42. Rxe6 $11 (42. Kxf2 Nd3+ 43. Ke2 Nxe1 $15)) 37. Qd4 {[%emt 0:01:19] [#]} Rb2 $1 {[%emt 0:00:39]} 38. g5 {[%emt 0:05:44]} (38. Qxb6 $142 Nxb6 39. Nb4) 38... hxg5 {[%emt 0:00:35]} ({Inferior is} 38... Rxc2 39. Qxf6+ Kf8 40. e5 (40. gxh6 Bb5 $11) 40... Bxg2 41. e6 Qxf2+ 42. Qxf2 Rxf2 43. Kxf2 hxg5 44. Kxg2 gxh4 45. Re4 $11) 39. hxg5 $2 {[%emt 0:00:03]} (39. Qxb6 Nxb6 40. Nb4) 39... Rxc2 {[%emt 0:01:45] Active counter play! Black is clearly winning.} 40. Qxf6+ {[%emt 0:00:00]} Kg8 {[%emt 0:00:00]} 41. e5 {[%emt 0:03:58] [#] And now e6 would win.} Bd7 {[%emt 0:05:35] Inhibits e6.} 42. e6 {[%emt 0:01:19]} Bxe6 {[%emt 0:01:04] Strongly threatening ...Rb2.} 43. Bd5 {[%emt 0:08:28][%cal Re1e6] [#]} Rxf2 $3 {[%emt 0:02:14][%mdl 512]} 44. Qxf2 {[%emt 0:01:17]} Bxd5 {[%emt 0:03:51]} 45. Qxb6 {[%emt 0:03:22]} Nxb6 {[%emt 0:00:01]} 46. Re8+ {[%emt 0:00:07]} Kg7 {[%emt 0:00:01]} 47. Rb8 {[%emt 0:00:06]} Nc4 {[%emt 0:01:47]} 48. Rb4 {[%emt 0:00:31]} a3 {[%emt 0:00:06] Threatens to win with ...a2.} 49. Ra4 {[%emt 0:00:01]} Kf8 {[%emt 0:03:51]} 50. Ra7 {[%emt 0:00:14]} Ke8 {[%emt 0:02:16] ...Kd8 is the strong threat.} 51. Kf2 {[%emt 0:00:34]} Kd8 {[%emt 0:00:03] Weighted Error Value: White=0.63/Black=0.17 (very precise)} 0-1

[Event "31st Kavala Open-A 2022"]
[Site "Kavala"]
[Date "2022.07.27"]
[Round "2.2"]
[White "Kourkoulos-Arditis, Stamatis"]
[Black "Koutlas, Nikolaos"]
[Result "1-0"]
[ECO "D78"]
[WhiteElo "2535"]
[BlackElo "2314"]
[Annotator "TA"]
[PlyCount "89"]
[EventDate "2022.07.27"]
[EventType "swiss"]
[EventCountry "GRE"]
[SourceTitle "playchess.com"]
[Source "ChessBase"]
[SourceQuality "1"]
[TimeControl "40/5400+30:1800+30"]

{[%evp 14,89,30,26,39,36,31,29,114,137,238,233,233,232,227,231,231,241,243,241,241,245,249,231,268,267,265,232,232,231,231,212,229,200,203,203,199,191,232,213,223,231,218,210,200,172,233,221,255,238,233,233,245,241,291,260,375,364,514,509,533,540,520,540,1498,1509,1425,1458,1817,1205,2428,2461,1984,1482,7050,7049,29991,29989]} 1. d4 {[%emt 0:00:03]} Nf6 {[%emt 0:00:06]} 2. c4 {[%emt 0:00:06]} g6 {[%emt 0:00:04]} 3. Nf3 {[%emt 0:00:05]} Bg7 {[%emt 0:00:09]} 4. g3 {[%emt 0:00:06]} O-O {[%emt 0:00:23]} 5. Bg2 {[%emt 0:00:05]} c6 {[%emt 0:00:13]} 6. O-O {[%emt 0:00:08]} d5 {[%emt 0:00:16]} 7. Ne5 {[%emt 0:00:10]} Bf5 {[%emt 0:05:42] 7...Ng4 gains popularity.} 8. Nc3 {[%emt 0:02:20]} Nbd7 {[%emt 0:05:23] D78: Fianchetto Grünfeld: 6 0-0 c6.} 9. Qb3 {[%emt 0:04:58]} Qb6 {[%emt 0:11:33]} 10. Nxd7 {[%emt 0:09:22] [#]} Nxd7 $146 {[%emt 0:00:30]} (10... Bxd7 $11 {keeps the balance.} 11. cxd5 cxd5) ({Predecessor:} 10... Bxd7 11. Qxb6 axb6 12. cxd5 cxd5 13. Bxd5 Nxd5 14. Nxd5 Be6 15. Nxb6 Ra6 16. d5 {½-½ (16) Bantescu,D (1872)-Oprea,C (1184) Calimanesti Caciulata 2019}) 11. cxd5 $16 {[%emt 0:00:15] Strongly threatening e4.} Bxd4 {[%emt 0:23:38]} (11... e5 $16) 12. e4 $18 {[%emt 0:03:55]} Bg4 {[%emt 0:00:11] [#]} 13. h3 $1 {[%emt 0:00:09]} Qxb3 {[%emt 0:00:18]} 14. axb3 {[%emt 0:00:05]} Bxc3 {[%emt 0:00:06]} 15. bxc3 {[%emt 0:00:09]} Be2 {[%emt 0:00:04] [#]} 16. Re1 {[%emt 0:00:09]} Bd3 {[%emt 0:00:40]} 17. Ba3 {[%emt 0:14:02] Black must now prevent dxc6.} c5 {[%emt 0:06:06]} 18. e5 {[%emt 0:10:45] And now e6 would win.} Rac8 {[%emt 0:03:44]} 19. Re3 {[%emt 0:00:30]} Ba6 {[%emt 0:01:09]} 20. c4 {[%emt 0:00:08]} e6 {[%emt 0:05:10]} 21. Bb2 {[%emt 0:04:43][%cal Ba3b2,Bb2c3,Bc3b4][%mdl 32]} Rfd8 {[%emt 0:01:10]} 22. d6 {[%emt 0:06:48]} Nb8 {[%emt 0:02:50]} 23. f4 {[%emt 0:02:43]} Rd7 {[%emt 0:00:40]} 24. Bf1 {[%emt 0:03:12]} b6 {[%emt 0:02:19]} 25. Bc3 {[%emt 0:05:05]} Rf8 {[%emt 0:04:34]} 26. b4 {[%emt 0:00:37]} cxb4 {[%emt 0:00:45]} 27. Bxb4 {[%emt 0:00:04]} Rc8 {[%emt 0:09:33]} 28. Rc3 {[%emt 0:05:02][%cal Be3c3,Bc3c1,Bc1c2,Bc2f2,Bf2f6][%mdl 32]} Kg7 {[%emt 0:07:41]} 29. Rcc1 {[%emt 0:05:53]} h6 {[%emt 0:02:27]} (29... f6 {keeps fighting.} 30. Bd2 Kf7) 30. g4 {[%emt 0:01:20]} Nc6 {[%emt 0:01:39]} 31. Bc3 {[%emt 0:00:05]} ({But not} 31. Rxa6 $6 Nxb4 32. Ra4 Nd5 $16) 31... Bb7 {[%emt 0:00:53]} 32. Bd3 {[%emt 0:01:57]} Ba8 {[%emt 0:01:58]} 33. Rc2 {[%emt 0:00:34]} Kh8 {[%emt 0:04:31]} 34. Kh2 {[%emt 0:01:42]} Rg8 {[%emt 0:00:29]} (34... Kg8 $142 35. Rb2 Nb8) 35. Rf2 {[%emt 0:00:44]} Kg7 {[%emt 0:00:30]} (35... h5 {was necessary.} 36. Kg3 hxg4 37. hxg4 Kg7) 36. f5 {[%emt 0:00:23]} Nd8 {[%emt 0:00:28]} 37. fxg6 {[%emt 0:02:32]} fxg6 {[%emt 0:00:25]} 38. Rf6 {[%emt 0:00:05]} Nf7 {[%emt 0:00:32]} 39. Rxg6+ {[%emt 0:00:54]} Kf8 {[%emt 0:00:26]} 40. Rxe6 {[%emt 0:00:00]} h5 {[%emt 0:00:00]} 41. Re7 {[%emt 0:04:07]} Rxe7 {[%emt 0:01:01]} 42. dxe7+ {[%emt 0:00:05]} Ke8 {[%emt 0:00:08]} 43. Rxa7 {[%emt 0:00:04]} Bf3 {[%emt 0:00:21]} 44. Rc7 {[%emt 0:01:18] Threatening mate with Bb4.} Rg5 {[%emt 0:01:09]} 45. c5 {[%emt 0:00:18] White took control after the opening.  Weighted Error Value: White=0.06 (flawless) /Black=0.40} 1-0

[Event "31st Kavala Open-A 2022"]
[Site "Kavala"]
[Date "2022.07.27"]
[Round "2.3"]
[White "Yilmazyerli, Mert"]
[Black "Tsaknakis, Zisis"]
[Result "1-0"]
[ECO "B13"]
[WhiteElo "2520"]
[BlackElo "2266"]
[Annotator "TA"]
[PlyCount "71"]
[EventDate "2022.07.27"]
[EventType "swiss"]
[EventCountry "GRE"]
[SourceTitle "playchess.com"]
[Source "ChessBase"]
[SourceQuality "1"]
[TimeControl "40/5400+30:1800+30"]

{[%evp 24,70,29,29,33,25,29,17,25,14,15,10,14,0,0,0,6,0,0,0,0,0,0,0,0,0,0,0,133,129,132,132,458,284,278,279,297,172,152,165,137,161,858,835,29995,29996,29998,29999,29999]} 1. e4 {[%emt 0:09:00]} c6 {[%emt 0:00:07]} 2. d4 {[%emt 0:04:19]} d5 {[%emt 0:00:03]} 3. exd5 {[%emt 0:00:07]} cxd5 {[%emt 0:00:05]} 4. Bd3 {[%emt 0:00:03]} Nc6 {[%emt 0:00:08]} 5. c3 {[%emt 0:00:04]} Nf6 {[%emt 0:00:05]} 6. Bf4 {[%emt 0:00:04]} Bg4 {[%emt 0:00:06]} 7. Qb3 {[%emt 0:00:32]} Qd7 {[%emt 0:00:02]} 8. Nd2 {[%emt 0:00:08][%cal Bb1d2,Bd2f3,Bf3e5][%mdl 32]} e6 {[%emt 0:00:06]} 9. Ngf3 {[%emt 0:00:03]} Bd6 {[%emt 0:00:09]} 10. Bxd6 {[%emt 0:00:13]} Qxd6 {[%emt 0:00:02]} 11. O-O {[%emt 0:00:23]} O-O {[%emt 0:00:05]} 12. Rfe1 {[%emt 0:00:32][%cal Bf1e1,Be1e3,Be3f3][%mdl 32]} Bxf3 {[%emt 0:00:15]} 13. Nxf3 {[%emt 0:00:05]} Qc7 {[%emt 0:00:08] outshines the older 13...Rab8. B13: Caro-Kann: Exchange Variation and Panov-Botvinnik Attack.} 14. a4 {[%emt 0:03:31]} Rab8 {[%emt 0:00:54] [#]} 15. Qa3 $146 {[%emt 0:01:12]} ({Predecessor:} 15. g3 a6 16. Qc2 Rfc8 17. Qe2 h6 18. Nd2 Na5 19. b4 Nc4 20. Bxc4 dxc4 {1-0 (75) Kamsky,G (2657)-Kaasen,T (2458) Chess.com INT 2022}) 15... Na5 {[%emt 0:13:40] The position is equal.} 16. Ne5 {[%emt 0:00:45]} Rfc8 {[%emt 0:10:07]} 17. Re3 {[%emt 0:09:10]} Nc4 {[%emt 0:02:34]} 18. Bxc4 {[%emt 0:00:35]} dxc4 {[%emt 0:00:02]} 19. Rf3 {[%emt 0:00:28]} a5 {[%emt 0:06:50]} 20. Qa2 {[%emt 0:12:09]} (20. b3 {keeps more tension.} cxb3 21. c4 Ne4 22. Rxf7 Qd6 23. Qb2) 20... b5 {[%emt 0:20:43]} 21. axb5 {[%emt 0:00:17]} Rxb5 {[%emt 0:00:18]} 22. h3 {[%emt 0:00:59]} h6 {[%emt 0:05:51]} 23. Re1 {[%emt 0:03:04][%cal Ba1e1,Be1e2,Be2d2][%mdl 32]} Rb3 {[%emt 0:09:10]} 24. Re2 {[%emt 0:01:10]} Qb6 {[%emt 0:03:20]} 25. Qa1 {[%emt 0:02:15]} Qb5 {[%emt 0:09:55]} (25... Qd8 $11 {remains equal.}) 26. Qc1 $1 $16 {[%emt 0:00:59][%cal Of3f6] Hoping for Rxf6!} Kf8 {[%emt 0:06:27]} 27. Qf4 {[%emt 0:20:58]} Ke7 $2 {[%emt 0:00:30][%mdl 8192] Loses the game.} (27... Qb7 $16) 28. d5 {[%emt 0:00:30]} Qxd5 {[%emt 0:07:08]} 29. Rd2 {[%emt 0:00:30] Prevents Qd1+.} Qb5 {[%emt 0:00:30]} 30. Qd4 {[%emt 0:00:30]} (30. Qg3 $142) 30... Qd5 $18 {[%emt 0:00:30] [#] Threatens to win with ...Qxd4.} (30... Kf8 $2 31. Rxf6 $1 {[%mdl 512]} gxf6 32. Nd7+ Kg8 33. Nxf6+ Kf8 34. Ne4 $18) 31. Qa7+ {[%emt 0:00:30]} Rb7 {[%emt 0:00:30]} 32. Qa6 $36 {[%emt 0:16:58][%mdl 2048] White is in control. White is more active.} Qb5 {[%emt 0:02:52] [#]} (32... Qxe5 33. Qxb7+ Qc7) 33. Rd7+ $3 {[%emt 0:02:22][%mdl 576] Skewer} Nxd7 {[%emt 0:00:12]} (33... Qxd7 34. Nxd7) 34. Rxf7+ {[%emt 0:00:06] White mates.} Kd8 {[%emt 0:01:24] [#]} 35. Qd6 $1 {[%emt 0:03:32][%csl Gd6][%cal Rf7f8]} Qxe5 {[%emt 0:00:56]} (35... h5 36. Rf8#) 36. Rf8# {[%emt 0:00:35] Weighted Error Value: White=0.18 (very precise) /Black=0.65} 1-0

[Event "31st Kavala Open-A 2022"]
[Site "Kavala"]
[Date "2022.07.27"]
[Round "2.4"]
[White "Charkhalashvili, Inga"]
[Black "Halkias, Stelios"]
[Result "0-1"]
[ECO "A26"]
[WhiteElo "2276"]
[BlackElo "2512"]
[Annotator "TA"]
[PlyCount "78"]
[EventDate "2022.07.27"]
[EventType "swiss"]
[EventCountry "GRE"]
[SourceTitle "playchess.com"]
[Source "ChessBase"]
[SourceQuality "1"]
[TimeControl "40/5400+30:1800+30"]

{[%evp 15,78,6,18,-5,4,0,50,0,8,-3,10,8,20,16,18,0,0,0,0,-8,16,-12,-19,-51,-48,-54,-40,-46,-43,-73,-65,-147,-147,-133,-112,-140,-116,-131,-147,-275,-209,-268,-239,-207,-148,-170,0,-166,17,11,12,14,25,0,50,61,50,0,0,-29986,-29987,-29987,-29988,-29977,-12835]} 1. Nf3 {[%emt 0:00:08]} Nf6 {[%emt 0:04:40]} 2. c4 {[%emt 0:00:19]} g6 {[%emt 0:01:00]} 3. g3 {[%emt 0:00:51]} Bg7 {[%emt 0:00:20]} 4. Bg2 {[%emt 0:00:08]} O-O {[%emt 0:00:32]} 5. Nc3 {[%emt 0:00:37]} d6 {[%emt 0:00:38]} 6. O-O {[%emt 0:01:32]} e5 {[%emt 0:02:15]} 7. d3 {[%emt 0:00:07]} h6 {[%emt 0:01:27]} 8. e4 {[%emt 0:07:04]} Nc6 {[%emt 0:03:54]} 9. h3 {[%emt 0:01:04] A26: English Opening vs King's Indian with ...Nc6 and d3.} Nd7 {[%emt 0:03:40]} 10. Be3 {[%emt 0:04:55]} Nc5 {[%emt 0:16:32] [#]} (10... Nd4 $11) 11. Rb1 $146 {[%emt 0:11:27]} (11. d4 $14 exd4 12. Nxd4) ({Predecessor:} 11. Qd2 Kh7 12. d4 exd4 13. Nxd4 Ne5 14. Qe2 Ne6 15. Rad1 Nxd4 16. Bxd4 Be6 17. b3 {1-0 (37) Tosic,M (2517)-Ozolin,M (2321) Moscow 1999}) 11... Ne6 {[%emt 0:06:04]} 12. b4 {[%emt 0:04:58]} Bd7 {[%emt 0:09:49]} 13. Nd5 {[%emt 0:04:30]} Ncd4 {[%emt 0:08:32]} 14. Nxd4 {[%emt 0:16:34]} Nxd4 {[%emt 0:00:33]} 15. Bxd4 {[%emt 0:01:22]} exd4 {[%emt 0:00:07]} 16. Nf4 {[%emt 0:01:40]} a6 {[%emt 0:04:25][%cal Ba7a6,Ba6b5][%mdl 32]} 17. a4 {[%emt 0:03:37]} b5 {[%emt 0:03:16]} 18. axb5 {[%emt 0:02:29]} axb5 {[%emt 0:00:07]} 19. Qb3 {[%emt 0:01:43]} Be5 $1 {[%emt 0:06:39]} 20. Ne2 {[%emt 0:02:24]} Ra7 {[%emt 0:07:00]} (20... Qe7 $5 {[%cal Ra8a4]}) 21. f4 {[%emt 0:06:03]} Bg7 {[%emt 0:00:54]} 22. Rbc1 {[%emt 0:02:05]} bxc4 {[%emt 0:09:01]} 23. dxc4 {[%emt 0:06:55]} (23. Qxc4 $15 Be6 24. Qc6) 23... Qa8 $17 {[%emt 0:01:30]} 24. e5 {[%emt 0:03:16]} Ra3 {[%emt 0:01:15]} 25. Qd1 {[%emt 0:02:04]} Qc8 {[%emt 0:03:46] aiming for ...c5. Black is more active.} 26. Qxd4 {[%emt 0:03:04]} Bxh3 {[%emt 0:00:24]} 27. Nc3 {[%emt 0:02:46]} (27. Rc3 $17 Ra4 28. Bxh3 Qxh3 29. c5) 27... Re8 {[%emt 0:02:38]} 28. Qf2 {[%emt 0:01:51]} Bxg2 {[%emt 0:01:31]} 29. Kxg2 {[%emt 0:00:11]} Qb7+ {[%emt 0:01:54]} 30. Kh3 {[%emt 0:01:14]} Qc8+ $2 {[%emt 0:00:13]} ({Wrong is} 30... dxe5 $2 31. f5) (30... Rb3 $19 31. Kh2 Rxb4) 31. Kh2 $2 {[%emt 0:02:00]} (31. Kg2 $1 $11 {and White has nothing to worry.}) 31... Qf5 $2 {[%emt 0:00:46]} (31... Qd7 $19 32. Nd5 c6 33. Nf6+ Bxf6 34. exf6 Qf5) 32. Nb5 $1 $11 {[%emt 0:01:07][%csl LRa3,LRc7,LRd6][%cal Bc3b5,Bb5c7,Bc7d5][%mdl 32]} Rd3 {[%emt 0:00:32]} 33. Nxc7 {[%emt 0:00:36]} Rd8 {[%emt 0:00:32]} 34. Nd5 {[%emt 0:00:44] [#] Ne7+ is the strong threat.} (34. Qe2 $5 {[%cal Rg3g4]} dxe5 35. Nd5 R8xd5 36. cxd5 $11) 34... Kh8 {[%emt 0:00:20]} ({Black should try} 34... Qh5+ $11 35. Kg2 (35. Kg1 dxe5 36. Kg2 R8xd5 $17) 35... dxe5) 35. Qe2 $14 {[%emt 0:00:53] Hoping for g4.} Ra3 $1 {[%emt 0:00:19][%cal Rd6e5]} 36. exd6 {[%emt 0:02:38]} ({Better is} 36. Ne7 $14 Qe6 37. Nc6) 36... Rxd6 $11 {[%emt 0:00:13] White must now prevent ...Re6.} 37. Rcd1 $2 {[%emt 0:00:52][%mdl 8192] [#]} (37. g4 $11 Qc8 38. Qg2) 37... Re6 {[%emt 0:00:17] Black mates.} 38. Qg2 {[%emt 0:01:58]} Qh5+ {[%emt 0:00:23]} 39. Kg1 {[%emt 0:00:04]} Re2 {[%emt 0:00:10] Weighted Error Value: White=0.52/Black=0.27 (precise)} (39... Qg4 $142 40. Nc3 Rxc3 41. Kh2 Ree3 42. Kh1 Rxg3 43. Qh2 Rh3 44. Rd8+ Kh7 45. Rd2 Rcg3 46. Rdf2 Bd4 47. f5 Rxh2+ 48. Rxh2 Rg1+ 49. Rxg1 Qxg1#) 0-1

[Event "31st Kavala Open-A 2022"]
[Site "Kavala"]
[Date "2022.07.27"]
[Round "2.5"]
[White "Spyratos, Nikolaos"]
[Black "Karthik Venkataraman"]
[Result "0-1"]
[ECO "A48"]
[WhiteElo "2268"]
[BlackElo "2483"]
[Annotator "TA"]
[PlyCount "116"]
[EventDate "2022.07.27"]
[EventType "swiss"]
[EventCountry "GRE"]
[SourceTitle "playchess.com"]
[Source "ChessBase"]
[SourceQuality "1"]
[TimeControl "40/5400+30:1800+30"]

{[%evp 22,116,0,0,0,0,0,0,114,3,8,0,0,0,0,0,18,0,38,0,0,0,13,-29,-36,-37,-22,-83,-75,-92,-85,-81,-13,-108,-107,-110,-114,-116,-110,-117,-115,-106,-102,-127,-120,-124,-117,-111,-117,-141,-172,-174,-178,-163,-119,-156,0,-144,-148,-145,-115,-138,-133,-205,-195,-187,-206,-232,-238,-258,-211,-385,-392,-374,-266,-444,-439,-431,-264,-547,-562,-552,-533,-560,-532,-803,-788,-902,-904,-865,-862,-832,-809,-1697,-1633,-1259,-1041]} 1. d4 {[%emt 0:00:11]} Nf6 {[%emt 0:01:38]} 2. Nf3 {[%emt 0:00:17]} g6 {[%emt 0:00:09]} 3. Bg5 {[%emt 0:00:46]} Bg7 {[%emt 0:00:18]} 4. Nbd2 {[%emt 0:00:11]} O-O {[%emt 0:00:08]} 5. c3 {[%emt 0:00:05]} d6 {[%emt 0:00:14]} 6. e4 {[%emt 0:00:42]} c5 {[%emt 0:00:08]} 7. dxc5 {[%emt 0:00:07]} dxc5 {[%emt 0:00:05]} 8. Be2 {[%emt 0:00:08]} Nc6 {[%emt 0:00:07]} 9. O-O {[%emt 0:00:27]} Qc7 {[%emt 0:00:05]} 10. Qc2 {[%emt 0:01:33]} b6 {[%emt 0:01:41]} 11. a4 {[%emt 0:07:55]} Bb7 {[%emt 0:00:14]} 12. Nc4 {[%emt 0:12:13]} h6 {[%emt 0:06:35] A48: 1 d4 Nf6 2 Nf3 g6: Torre, London and Colle Systems.} 13. Bh4 {[%emt 0:01:29]} Nh5 {[%emt 0:00:08] [#]} 14. Rfd1 $146 {[%emt 0:03:58]} ({Predecessor:} 14. Rfe1 Rfd8 15. a5 Nxa5 16. Nxa5 bxa5 17. Bc4 Bc6 18. Qb3 Be8 19. Rad1 a4 20. Qa2 Rxd1 21. Rxd1 {0-1 (58) Mufic,G (2263)-Mrdja,M (2347) Sibenik 2012}) 14... a6 {[%emt 0:06:46]} (14... Nf4 $11) 15. Ne3 {[%emt 0:09:07]} (15. Qb3 $1 $16) 15... e6 $11 {[%emt 0:01:09]} 16. Nd2 {[%emt 0:04:04]} Nf4 {[%emt 0:00:33]} 17. Bf1 {[%emt 0:00:11]} g5 {[%emt 0:04:28]} 18. Bg3 {[%emt 0:01:40]} Ne7 {[%emt 0:03:10]} 19. f3 {[%emt 0:07:49]} h5 {[%emt 0:00:59]} 20. Ndc4 {[%emt 0:09:49]} Bc6 {[%emt 0:03:28]} 21. Qb3 {[%emt 0:07:59]} b5 {[%emt 0:02:45]} 22. axb5 {[%emt 0:00:40]} axb5 {[%emt 0:00:06]} 23. Rxa8 {[%emt 0:03:08]} Rxa8 {[%emt 0:00:06]} 24. Na3 {[%emt 0:08:25]} (24. Nd6 $11) 24... b4 $36 {[%emt 0:05:48][%mdl 2048] Black has strong initiative.} ({But not} 24... h4 $6 25. Be1 $15) 25. Nac2 {[%emt 0:06:49]} bxc3 {[%emt 0:06:58] Black is more active.} 26. bxc3 {[%emt 0:00:12]} Qe5 {[%emt 0:01:16]} ({Black should try} 26... Neg6 $17) 27. Be1 {[%emt 0:03:33]} (27. Qb6 $11 {remains equal.}) 27... g4 {[%emt 0:00:40]} 28. g3 {[%emt 0:06:25] [#]} Nfg6 {[%emt 0:02:31]} 29. f4 {[%emt 0:02:29]} Qxe4 {[%emt 0:01:35]} 30. Bg2 {[%emt 0:00:06] Prevents Qh1+.} Qa4 {[%emt 0:00:04]} 31. Qxa4 {[%emt 0:01:28]} Rxa4 {[%emt 0:00:05]} 32. Rd8+ {[%emt 0:00:23]} Kh7 {[%emt 0:02:22]} 33. Bxc6 {[%emt 0:01:24]} Nxc6 {[%emt 0:00:05]} 34. Rd7 {[%emt 0:00:19]} Nge7 {[%emt 0:00:07]} 35. Kg2 {[%emt 0:01:12]} Ra2 {[%emt 0:00:18]} 36. Kf1 {[%emt 0:00:39]} Kg6 {[%emt 0:00:43]} 37. Rc7 {[%emt 0:00:18]} Bf6 {[%emt 0:00:37]} 38. Bd2 {[%emt 0:00:42]} Bg7 $2 {[%emt 0:12:36]} ({Black should play} 38... e5 $17 {And now ...exf4 would win.} 39. Ke2 exf4 40. gxf4 Bh4) 39. Ke2 {[%emt 0:00:32]} (39. Be1 $1 $11) 39... f5 {[%emt 0:00:06]} 40. Kd1 {[%emt 0:00:00]} Bf6 {[%emt 0:00:00]} 41. Nc4 {[%emt 0:05:52]} Ra6 {[%emt 0:01:47]} 42. N4e3 {[%emt 0:05:46] [#]} (42. N2e3 $17 {was necessary.}) 42... h4 $1 $19 {[%emt 0:01:46]} 43. gxh4 {[%emt 0:02:02]} Bxh4 {[%emt 0:00:30]} 44. Ke2 {[%emt 0:02:08]} Bf6 {[%emt 0:00:12]} 45. Rb7 {[%emt 0:03:40]} Ra4 {[%emt 0:01:46]} 46. Rb5 $2 {[%emt 0:03:34]} (46. Ne1 {might work better.}) 46... Rxf4 {[%emt 0:03:33]} 47. Rxc5 {[%emt 0:00:15]} Rf3 {[%emt 0:00:15]} 48. Nb4 $2 {[%emt 0:01:59]} (48. Be1) 48... Nxb4 {[%emt 0:04:03]} ({Don't blunder} 48... Ne5 $2 49. Ng2 $19) 49. cxb4 {[%emt 0:00:02]} Bd4 {[%emt 0:00:05]} 50. Rc1 {[%emt 0:04:59]} (50. Nxg4 {was forced.} fxg4 51. Rg5+ Kf6 52. Rxg4 Rf2+ 53. Ke1) 50... Bxe3 {[%emt 0:00:50] Black is clearly winning.} 51. Bxe3 {[%emt 0:00:02][%mdl 4096] Endgame KRB-KRN} Nd5 {[%emt 0:00:05][%csl LRb4,LRe3]} 52. Bd2 {[%emt 0:00:32]} Rb3 {[%emt 0:03:22] Against Rb1} 53. Rc4 {[%emt 0:00:34]} Rh3 {[%emt 0:00:09]} 54. b5 {[%emt 0:00:27]} Rxh2+ {[%emt 0:00:47]} 55. Kd3 {[%emt 0:00:47]} Rh3+ {[%emt 0:02:44]} 56. Kd4 {[%emt 0:00:09]} Rb3 {[%emt 0:00:19] Strongly threatening ...g3.} 57. Kc5 {[%emt 0:00:35]} g3 {[%emt 0:02:14]} 58. Rc1 {[%emt 0:00:16]} f4 {[%emt 0:01:02] Weighted Error Value: White=0.55/Black=0.20 (precise)} 0-1